bitfinex-derivatives/quotes_BTCF0:USTF0_20250208
["timestamp","ask_amount","ask_price","bid_price","bid_amount"]
[1738993706145,0.3672838,96376.0,96369.0,0.208525]
[1738993706565,0.3672838,96376.0,96369.0,0.209525]
[1738993706852,0.212511,96376.0,96369.0,0.209525]
[1738993707254,0.212511,96376.0,96369.0,0.21986566]
[1738993707849,0.212511,96376.0,96371.0,0.2075208]
[1738993708053,0.005,96376.0,96369.0,0.01234066]
[1738993708356,0.005,96376.0,96372.0,0.2075189]
[1738993708558,0.005,96376.0,96374.0,0.2075145]
[1738993709652,0.3608,96379.0,96374.0,0.2075145]
[1738993709851,0.001,96376.0,96374.0,0.2095145]
[1738993712459,0.3658,96379.0,96374.0,0.2095145]
[1738993712861,0.3608,96379.0,96374.0,0.2085145]
[1738993713065,0.005,96376.0,96374.0,0.2095145]
[1738993713559,0.005,96376.0,96374.0,0.2085145]
[1738993713760,0.005,96376.0,96374.0,0.2095145]
[1738993713970,0.004,96379.0,96376.0,0.2075093]
[1738993715062,0.004,96379.0,96377.0,0.2075072]
[1738993715363,0.2398942,96384.0,96377.0,0.2075072]
[1738993715756,0.2074942,96384.0,96377.0,0.2075072]
[1738993716165,0.004,96379.0,96377.0,0.2075072]
[1738993716556,0.2124942,96384.0,96377.0,0.001]
[1738993716754,0.2124942,96384.0,96378.0,0.2075049]
[1738993718263,0.2124942,96384.0,96377.0,0.001]
[1738993718264,0.005,96384.0,96379.0,0.2075039]
[1738993718468,0.2075052,96379.0,96377.0,0.001]
[1738993718853,0.2075052,96379.0,96363.0,0.0694]
[1738993718854,0.0322,96378.0,96367.0,0.207529]
[1738993719069,0.2075176,96373.0,96368.0,0.2075272]
[1738993719251,0.3608,96371.0,96360.0,0.31113922]
[1738993719564,0.20753,96367.0,96360.0,0.31057922]
[1738993720456,0.20753,96367.0,96361.0,0.31057922]
[1738993722558,0.56833,96367.0,96361.0,0.31057922]
[1738993724569,0.56833,96367.0,96359.0,0.2403458]
[1738993728167,0.56833,96367.0,96353.0,0.01058406]
[1738993729373,0.56833,96367.0,96353.0,0.21814376]
[1738993732969,0.56833,96367.0,96357.0,0.08145062]
[1738993733271,0.56833,96367.0,96353.0,0.21814376]
[1738993734572,0.20753,96367.0,96353.0,0.21814376]
[1738993734967,0.56833,96367.0,96353.0,0.21814376]
[1738993735767,0.56833,96367.0,96353.0,0.01058406]
[1738993736069,0.56833,96367.0,96357.0,0.08145062]
[1738993736278,0.56833,96367.0,96359.0,0.2075467]
[1738993736470,0.56833,96367.0,96360.0,0.031]
[1738993737782,0.3608,96367.0,96360.0,0.031]
[1738993738078,0.2075179,96373.0,96360.0,0.031]
[1738993738079,0.2075179,96373.0,96365.0,0.207534]
[1738993738379,0.2075179,96373.0,96366.0,0.0695556]
[1738993738971,0.2075179,96373.0,96366.0,0.07977068]
[1738993739473,0.2095179,96373.0,96366.0,0.07977068]
[1738993741679,0.2095179,96373.0,96366.0,0.28730228]
[1738993742674,0.2095179,96373.0,96367.0,0.2075299]
[1738993747277,0.2075199,96372.0,96367.0,0.2075299]
[1738993748488,0.2085199,96372.0,96367.0,0.2075299]
[1738993750276,0.2085199,96372.0,96366.0,0.07977068]
[1738993750482,0.2085199,96372.0,96368.0,0.2075278]
[1738993752491,0.001,96372.0,96371.0,0.2075214]
[1738993756994,0.001,96372.0,96371.0,0.5683214]
[1738993771410,0.001,96372.0,96371.0,0.2075214]
[1738993771610,0.001,96372.0,96371.0,0.5683214]
[1738993772203,0.001,96372.0,96371.0,0.2075214]
[1738993772404,0.001,96372.0,96371.0,0.5683214]
[1738993779221,0.001,96372.0,96371.0,0.2075214]
[1738993779520,0.001,96372.0,96371.0,0.5683214]
[1738993779913,0.001,96372.0,96371.0,0.2075214]
[1738993780219,0.001,96372.0,96371.0,0.5683214]
[1738993781408,0.001,96372.0,96371.0,0.2075214]
[1738993782021,0.001,96372.0,96371.0,0.5683214]
[1738993783719,0.001,96372.0,96371.0,0.2075214]
[1738993783920,0.001,96372.0,96371.0,0.5683214]
[1738993792430,0.001,96372.0,96371.0,0.6376814]
[1738993795928,0.001,96372.0,96371.0,0.2768814]
[1738993797732,0.001,96372.0,96366.0,0.01037068]
[1738993797934,0.001,96372.0,96366.0,0.0001556]
[1738993798131,0.20753,96367.0,96366.0,0.0001556]
[1738993801128,0.3608,96372.0,96366.0,0.0001556]
[1738993802339,0.5693199,96372.0,96366.0,0.0001556]
[1738993802542,0.001,96372.0,96366.0,0.0001556]
[1738993802835,0.001,96372.0,96370.0,0.2075222]
[1738993803228,0.001,96372.0,96366.0,0.0001556]
[1738993803434,0.2075222,96371.0,96366.0,0.0001556]
[1738993803635,0.001,96372.0,96366.0,0.0001556]
[1738993803636,0.2075253,96370.0,96366.0,0.0001556]
[1738993803835,0.001,96372.0,96366.0,0.0001556]
[1738993805539,0.3608,96373.0,96366.0,0.0001556]
[1738993805839,0.001,96372.0,96366.0,0.0001556]
[1738993806630,0.001,96372.0,96366.0,0.2076863]
[1738993806831,0.3628,96373.0,96366.0,0.2076863]
[1738993807026,0.3628,96373.0,96366.0,0.0001556]
[1738993807227,0.3628,96373.0,96371.0,0.2075208]
[1738993807436,0.001,96372.0,96371.0,0.2075208]
[1738993808946,0.3608,96373.0,96371.0,0.2075208]
[1738993808947,0.3628,96373.0,96371.0,0.2075208]
[1738993809647,0.001,96372.0,96371.0,0.2075208]
[1738993810041,0.3608,96373.0,96371.0,0.2075208]
[1738993810248,0.3628,96373.0,96371.0,0.2075208]
[1738993811740,0.3608,96373.0,96371.0,0.2075208]
[1738993811940,0.001,96372.0,96371.0,0.2075208]
[1738993812344,0.3608,96373.0,96371.0,0.2075208]
[1738993812543,0.002,96373.0,96371.0,0.2075208]
[1738993812939,0.0303,96379.0,96371.0,0.2075208]
[1738993813140,0.001,96372.0,96371.0,0.2075208]
[1738993813649,0.0303,96379.0,96371.0,0.2075208]
[1738993813650,0.002,96373.0,96371.0,0.2075208]
[1738993813947,0.002,96373.0,96366.0,0.2076872]
[1738993814335,0.002,96373.0,96367.0,0.207528]
[1738993814740,0.002,96373.0,96368.0,0.2075271]
[1738993815251,0.002,96373.0,96369.0,0.207524]
[1738993815949,0.002,96373.0,96370.0,0.2075223]
[1738993816148,0.002,96373.0,96371.0,0.2075193]
[1738993816448,0.0303,96379.0,96370.0,0.2075228]
[1738993816449,0.001,96372.0,96370.0,0.2075228]
[1738993817148,0.002,96373.0,96370.0,0.2075228]
[1738993817642,0.0303,96379.0,96370.0,0.2075228]
[1738993817848,0.001,96372.0,96370.0,0.2075228]
[1738993818240,0.002,96373.0,96370.0,0.2075228]
[1738993819958,0.0303,96379.0,96370.0,0.2075228]
[1738993820249,0.0343,96379.0,96370.0,0.2075228]
[1738993821148,0.002,96373.0,96370.0,0.2075228]
[1738993822249,0.0303,96379.0,96370.0,0.2075228]
[1738993822445,0.0343,96379.0,96370.0,0.2075228]
[1738993822852,0.0343,96379.0,96370.0,0.2085228]
[1738993823845,0.002,96373.0,96370.0,0.2085228]
[1738993824354,0.0303,96379.0,96370.0,0.2085228]
[1738993824552,0.0343,96379.0,96370.0,0.2085228]
[1738993824955,0.0303,96379.0,96370.0,0.2085228]
[1738993825262,0.002,96373.0,96370.0,0.2085228]
[1738993825457,0.0303,96379.0,96370.0,0.2085228]
[1738993825755,0.0343,96379.0,96370.0,0.2085228]
[1738993825955,0.0343,96379.0,96370.0,0.2075228]
[1738993826755,0.0343,96379.0,96370.0,0.001]
[1738993826958,0.0343,96379.0,96372.0,0.207519]
[1738993827352,0.0343,96379.0,96370.0,0.001]
[1738993827551,0.0343,96379.0,96377.0,0.2075083]
[1738993829165,0.0303,96379.0,96377.0,0.2075083]
[1738993829365,0.0343,96379.0,96377.0,0.2075083]
[1738993829552,0.0343,96379.0,96377.0,0.2085083]
[1738993830556,0.004,96379.0,96377.0,0.2085083]
[1738993831264,0.004,96379.0,96377.0,0.2190918]
[1738993836965,0.004,96379.0,96377.0,0.2085083]
[1738993839762,0.004,96379.0,96378.0,0.2075064]
[1738993840572,0.004,96379.0,96377.0,0.001]
[1738993840573,0.2075063,96378.0,96377.0,0.001]
[1738993841970,0.2115063,96378.0,96372.0,0.01020358]
[1738993842167,0.3608,96375.0,96371.0,0.24827303]
[1738993842471,0.3608,96375.0,96369.0,0.2768052]
[1738993843566,0.3638,96375.0,96369.0,0.2768052]
[1738993843970,0.3608,96375.0,96369.0,0.2768052]
[1738993844170,0.003,96375.0,96369.0,0.2768052]
[1738993844563,0.003,96375.0,96369.0,0.06928]
[1738993845872,0.003,96375.0,96369.0,0.07972799]
[1738993857597,0.2105144,96375.0,96369.0,0.07972799]
[1738993868206,0.207516,96374.0,96369.0,0.07972799]
[1738993870905,0.209516,96374.0,96369.0,0.07972799]
[1738993879806,0.2075214,96372.0,96369.0,0.07972799]
[1738993882612,0.2085214,96372.0,96369.0,0.07972799]
[1738993884709,0.2075236,96370.0,96369.0,0.07972799]
[1738993885815,0.2085236,96370.0,96369.0,0.07972799]
[1738993886420,0.2085236,96370.0,96369.0,0.01044799]
[1738993886717,0.2085236,96370.0,96366.0,0.0001556]
[1738993888917,0.2075294,96368.0,96366.0,0.0001556]
[1738993890212,0.2075294,96368.0,96366.0,0.01038375]
[1738993890420,0.2075294,96368.0,96366.0,0.0001556]
[1738993891317,0.3622882,96374.0,96366.0,0.0001556]
[1738993891911,0.2075177,96373.0,96366.0,0.0001556]
[1738993892409,0.1567728,96374.0,96366.0,0.0001556]
[1738993892610,0.3608,96367.0,96361.0,0.00052]
[1738993892806,0.207537,96364.0,96352.0,0.06924]
[1738993894121,0.207537,96364.0,96353.0,0.14632407]
[1738993894617,0.3608,96367.0,96357.0,0.2075498]
[1738993894818,0.1567728,96374.0,96366.0,0.3608]
[1738993895014,0.1547728,96374.0,96372.0,0.2075184]
[1738993895216,0.32097875,96379.0,96378.0,0.2075064]
[1738993895513,0.10087875,96379.0,96378.0,0.2075064]
[1738993895825,0.21767739,96393.0,96380.0,0.2075012]
[1738993896118,0.21767739,96393.0,96381.0,0.0311]
[1738993896119,0.08141045,96390.0,96381.0,0.0311]
[1738993896320,0.2074847,96389.0,96381.0,0.0311]
[1738993897323,0.2074847,96389.0,96381.0,0.0321]
[1738993897724,0.2074847,96389.0,96381.0,0.2395992]
[1738993898123,0.2074867,96388.0,96382.0,0.207497]
[1738993898328,0.15553996,96383.0,96382.0,0.207497]
[1738993899517,0.15553996,96383.0,96382.0,0.208497]
[1738993900530,0.15553996,96383.0,96382.0,0.001]
[1738993900920,0.16053996,96383.0,96382.0,0.001]
[1738993901220,0.005,96383.0,96382.0,0.001]
[1738993903429,0.37641948,96383.0,96382.0,0.001]
[1738993904426,0.17115944,96383.0,96382.0,0.001]
[1738993904633,0.75205944,96383.0,96360.0,0.2075449]
[1738993904839,0.3608,96364.0,96360.0,0.2075449]
[1738993905827,0.3608,96364.0,96360.0,0.2085449]
[1738993906134,0.3608,96364.0,96360.0,0.2095449]
[1738993906340,0.5683368,96364.0,96360.0,0.2095449]
[1738993906632,0.5683368,96364.0,96360.0,0.2085449]
[1738993907433,0.5683368,96364.0,96360.0,0.001]
[1738993908533,0.3608,96364.0,96360.0,0.001]
[1738993908736,0.2075395,96363.0,96360.0,0.001]
[1738993910030,0.2085395,96363.0,96360.0,0.001]
[1738993910935,0.2085395,96363.0,96360.0,0.002]
[1738993912234,0.2075412,96362.0,96360.0,0.002]
[1738993922348,0.207543,96361.0,96360.0,0.002]
[1738993923840,0.0305,96365.0,96354.0,0.0303]
[1738993924035,0.3608,96355.0,96354.0,0.0303]
[1738993924643,0.2076939,96364.0,96354.0,0.0303]
[1738993925035,0.2076939,96364.0,96354.0,0.0313]
[1738993925534,0.2076939,96364.0,96354.0,0.0303]
[1738993925836,0.2076939,96364.0,96354.0,0.0353]
[1738993926140,0.2076939,96364.0,96354.0,0.0383]
[1738993927848,0.2076939,96364.0,96354.0,0.0343]
[1738993928545,0.2076939,96364.0,96354.0,0.0313]
[1738993928843,0.2086939,96364.0,96354.0,0.0313]
[1738993930832,0.5694939,96364.0,96354.0,0.0313]
[1738993931239,0.3619556,96364.0,96354.0,0.0313]
[1738993931444,0.2075394,96363.0,96354.0,0.0313]
[1738993932543,0.2085394,96363.0,96354.0,0.0313]
[1738993932737,0.2085394,96363.0,96356.0,0.2075531]
[1738993932937,0.001,96363.0,96357.0,0.2075505]
[1738993933544,0.001,96363.0,96358.0,0.207549]
[1738993934645,0.001,96363.0,96361.0,0.2075413]
[1738993934944,0.001,96363.0,96362.0,0.2075408]
[1738993935142,0.001,96363.0,96362.0,0.2393408]
[1738993936232,0.001,96363.0,96362.0,0.2413408]
[1738993939048,0.001,96363.0,96362.0,0.6021408]
[1738993941239,0.001,96363.0,96362.0,0.61269333]
[1738993943443,0.001,96363.0,96362.0,0.68189333]
[1738993945251,0.001,96363.0,96362.0,0.32109333]
[1738993945646,0.001,96363.0,96362.0,0.68189333]
[1738993946449,0.001,96363.0,96362.0,0.32109333]
[1738993946651,0.001,96363.0,96362.0,0.68189333]
[1738993948251,0.001,96363.0,96362.0,0.58089333]
[1738993948652,0.001,96363.0,96362.0,0.22009333]
[1738993963261,0.001,96363.0,96362.0,0.25149333]
[1738993967265,0.001,96363.0,96362.0,0.61229333]
[1738993971570,0.001,96363.0,96362.0,0.25149333]
[1738993971771,0.001,96363.0,96362.0,0.61229333]
[1738993972364,0.001,96363.0,96362.0,0.25149333]
[1738993972566,0.001,96363.0,96362.0,0.61229333]
[1738993974767,0.001,96363.0,96362.0,0.68145333]
[1738993978475,0.001,96363.0,96362.0,0.32065333]
[1738993978670,0.001,96363.0,96362.0,0.68145333]
[1738993987682,0.001,96363.0,96362.0,0.9916305]
[1738993990475,0.001,96363.0,96362.0,0.68145333]
[1738993993680,0.001,96363.0,96362.0,0.9916305]
[1738993999483,0.001,96363.0,96362.0,0.68145333]
[1738994005595,0.001,96363.0,96362.0,0.32065333]
[1738994005795,0.001,96363.0,96362.0,0.68145333]
[1738994006294,0.001,96363.0,96362.0,0.32065333]
[1738994006593,0.001,96363.0,96362.0,0.68145333]
[1738994011897,0.0001556,96364.0,96363.0,0.2075387]
[1738994012902,0.0001556,96364.0,96363.0,0.5683387]
[1738994013093,0.0011556,96364.0,96363.0,0.5683387]
[1738994013290,0.0011556,96364.0,96363.0,0.5693387]
[1738994016004,0.0011556,96364.0,96363.0,0.58538424]
[1738994017088,0.0319,96381.0,96378.0,0.2075054]
[1738994017296,0.0319,96381.0,96379.0,0.01604554]
[1738994017495,0.0319,96381.0,96380.0,0.01604554]
[1738994019787,0.0369,96381.0,96380.0,0.01704554]
[1738994020488,0.0369,96381.0,96380.0,0.22454774]
[1738994020489,0.005,96381.0,96380.0,0.22454774]
[1738994020695,0.005,96381.0,96380.0,0.58534774]
[1738994021795,0.005,96381.0,96380.0,0.5693022]
[1738994026307,0.005,96381.0,96380.0,0.2085022]
[1738994026609,0.005,96381.0,96380.0,0.5693022]
[1738994026811,0.005,96381.0,96380.0,0.001]
[1738994031017,0.005,96381.0,96369.0,0.06908]
[1738994031018,0.2075139,96375.0,96369.0,0.06908]
[1738994031305,0.3608,96370.0,96369.0,0.06908]
[1738994032812,0.3618,96370.0,96369.0,0.06908]
[1738994033112,0.3618,96370.0,96366.0,0.01040474]
[1738994033312,0.0648,96369.0,96361.0,0.06908]
[1738994035610,0.0658,96369.0,96361.0,0.06908]
[1738994040720,0.0658,96369.0,96361.0,0.2766222]
[1738994040912,0.034,96369.0,96361.0,0.06908]
[1738994041111,0.001,96369.0,96367.0,0.2075294]
[1738994041611,0.001,96369.0,96368.0,0.207528]
[1738994042212,0.2201,96379.0,96365.0,0.3608]
[1738994042521,0.2075265,96369.0,96365.0,0.3608]
[1738994042822,0.0326,96368.0,96365.0,0.3608]
[1738994043212,0.2075305,96367.0,96365.0,0.3608]
[1738994043524,0.2075305,96367.0,96359.0,0.08141045]
[1738994043713,0.0322,96366.0,96359.0,0.09189712]
[1738994045022,0.0322,96366.0,96359.0,0.08141045]
[1738994046218,0.0322,96366.0,96359.0,0.08241045]
[1738994049517,0.0322,96366.0,96360.0,0.2075431]
[1738994049824,0.3608,96371.0,96363.0,0.2075383]
[1738994050028,0.01045474,96376.0,96366.0,0.3608]
[1738994050216,0.2075067,96378.0,96366.0,0.3608]
[1738994050416,0.2075067,96378.0,96368.0,0.08141045]
[1738994050613,0.2075067,96378.0,96369.0,0.0303]
[1738994050924,0.2075067,96378.0,96369.0,0.2378245]
[1738994051125,0.2075067,96378.0,96370.0,0.01603368]
[1738994051431,0.2201,96379.0,96371.0,0.01603368]
[1738994051622,0.004,96378.0,96377.0,0.2075086]
[1738994051822,0.004,96378.0,96377.0,0.22354228]
[1738994053535,0.2201,96379.0,96377.0,0.22354228]
[1738994053734,0.004,96378.0,96377.0,0.2075086]
[1738994053931,0.004,96378.0,96377.0,0.22351586]
[1738994054128,0.004,96378.0,96377.0,0.22451586]
[1738994054632,0.15553996,96386.0,96380.0,0.2075015]
[1738994054820,0.15553996,96386.0,96381.0,0.01600726]
[1738994055024,0.15553996,96386.0,96382.0,0.01600726]
[1738994055228,0.15553996,96386.0,96383.0,0.01600726]
[1738994055437,0.15553996,96386.0,96380.0,0.2075015]
[1738994055438,0.15553996,96386.0,96384.0,0.01600726]
[1738994055630,0.15553996,96386.0,96385.0,0.01600726]
[1738994055930,0.15553996,96386.0,96385.0,0.01599651]
[1738994056539,0.01047514,96387.0,96385.0,0.01599651]
[1738994056724,0.0628,96389.0,96386.0,0.01599651]
[1738994056920,0.0628,96389.0,96387.0,0.01599651]
[1738994057120,0.07293924,96389.0,96388.0,0.01599651]
[1738994058032,0.07793924,96389.0,96388.0,0.01599651]
[1738994058225,0.07793924,96389.0,96388.0,0.01699651]
[1738994059622,0.07793924,96389.0,96388.0,0.01799651]
[1738994061834,0.07793924,96389.0,96388.0,0.01804527]
[1738994062237,0.07793924,96389.0,96388.0,0.002]
[1738994063827,0.37793924,96389.0,96373.0,0.2076717]
[1738994064027,0.3608,96377.0,96373.0,0.2076717]
[1738994065134,0.3608,96377.0,96373.0,0.2086717]
[1738994065728,0.3638,96377.0,96373.0,0.2086717]
[1738994066131,0.3638,96377.0,96373.0,0.0011556]
[1738994066642,0.3648,96377.0,96373.0,0.0011556]
[1738994066944,0.2075149,96375.0,96373.0,0.0011556]
[1738994068037,0.2095149,96375.0,96373.0,0.0001556]
[1738994069235,0.2075286,96368.0,96361.0,0.2075428]
[1738994069538,0.5683286,96368.0,96361.0,0.2075428]
[1738994070446,0.5693286,96368.0,96361.0,0.2075428]
[1738994071139,0.2075324,96366.0,96357.0,0.07059656]
[1738994072337,0.3618,96368.0,96357.0,0.07059656]
[1738994072338,0.2075419,96362.0,96357.0,0.00155656]
[1738994072539,0.3608,96358.0,96357.0,0.00255656]
[1738994073548,0.3608,96358.0,96356.0,0.24770396]
[1738994073735,0.5683496,96358.0,96357.0,0.002]
[1738994074135,0.5683496,96358.0,96357.0,0.006]
[1738994074548,0.5787922,96358.0,96357.0,0.006]
[1738994075751,0.5787922,96358.0,96357.0,0.002]
[1738994076250,0.5787922,96358.0,96357.0,0.006]
[1738994076645,0.5913426,96358.0,96355.0,0.0001556]
[1738994076840,0.5913426,96358.0,96352.0,0.24770396]
[1738994077041,0.2075603,96353.0,96352.0,0.24770396]
[1738994077448,0.2388603,96353.0,96352.0,0.24770396]
[1738994078542,0.2075776,96345.0,96343.0,0.0001556]
[1738994078743,0.3608,96344.0,96343.0,0.0001556]
[1738994080048,0.3618,96344.0,96330.0,0.06904]
[1738994080250,0.5683991,96335.0,96330.0,0.06904]
[1738994081953,0.5683991,96335.0,96334.0,0.00655708]
[1738994082947,0.5683991,96335.0,96334.0,0.01055708]
[1738994083647,0.57865606,96335.0,96334.0,0.01055708]
[1738994086948,0.2076163,96327.0,96326.0,0.0306]
[1738994087150,0.3608,96327.0,96309.0,0.0647]
[1738994087342,0.2076513,96311.0,96309.0,0.0647]
[1738994089057,0.2076513,96311.0,96309.0,0.0687]
[1738994090551,0.2076659,96304.0,96303.0,0.18286524]
[1738994090747,0.2076659,96304.0,96303.0,0.18234524]
[1738994091653,0.2086659,96304.0,96303.0,0.18334524]
[1738994091854,0.2086659,96304.0,96303.0,0.005]
[1738994092159,0.2076659,96304.0,96303.0,0.004]
[1738994092360,0.2076659,96304.0,96303.0,0.005]
[1738994095161,0.5684659,96304.0,96303.0,0.005]
[1738994095963,0.7885659,96304.0,96303.0,0.005]
[1738994097559,0.5809,96304.0,96300.0,0.10010448]
[1738994097766,0.2076724,96301.0,96300.0,0.10010448]
[1738994098156,0.5684724,96301.0,96300.0,0.10010448]
[1738994098755,0.5684724,96301.0,96300.0,0.10410448]
[1738994098954,0.5694724,96301.0,96300.0,0.10810448]
[1738994100257,0.5694724,96301.0,96300.0,0.10410448]
[1738994100455,0.5694724,96301.0,96300.0,0.10910448]
[1738994101363,0.57982181,96301.0,96300.0,0.10910448]
[1738994101958,0.21902181,96301.0,96300.0,0.10910448]
[1738994102263,0.57982181,96301.0,96300.0,0.10910448]
[1738994105767,0.57982181,96301.0,96300.0,0.12533749]
[1738994106073,0.57982181,96301.0,96300.0,0.10910448]
[1738994106368,0.57982181,96301.0,96300.0,0.12533749]
[1738994107967,0.57982181,96301.0,96300.0,0.10910448]
[1738994108369,0.57982181,96301.0,96300.0,0.12533749]
[1738994108663,0.57982181,96301.0,96300.0,0.10910448]
[1738994109354,0.57982181,96301.0,96300.0,0.12533749]
[1738994114876,0.21902181,96301.0,96300.0,0.12533749]
[1738994115077,0.57982181,96301.0,96300.0,0.12533749]
[1738994117271,0.21902181,96301.0,96300.0,0.12533749]
[1738994117574,0.57982181,96301.0,96300.0,0.12533749]
[1738994120975,0.63031785,96301.0,96300.0,0.12533749]
[1738994121378,0.2076961,96290.0,96286.0,0.0617]
[1738994122578,0.2096961,96290.0,96289.0,0.01355736]
[1738994123682,0.26019214,96290.0,96289.0,0.01355736]
[1738994124569,0.2077263,96276.0,96275.0,0.0313]
[1738994124880,0.5685263,96276.0,96275.0,0.0313]
[1738994126282,0.5685263,96276.0,96275.0,0.0353]
[1738994126482,0.5695263,96276.0,96275.0,0.0353]
[1738994127073,0.5695263,96276.0,96275.0,0.0313]
[1738994127074,0.5705263,96276.0,96275.0,0.0313]
[1738994128179,0.62102234,96276.0,96275.0,0.0313]
[1738994128686,0.62002234,96276.0,96275.0,0.0313]
[1738994130087,0.62002234,96276.0,96273.0,0.0314]
[1738994130088,0.2077306,96274.0,96273.0,0.0314]
[1738994130290,0.20775,96265.0,96264.0,0.0311]
[1738994131174,0.2077384,96271.0,96264.0,0.0311]
[1738994131382,0.2077409,96270.0,96264.0,0.0311]
[1738994132276,0.2077466,96267.0,96264.0,0.0311]
[1738994132593,0.2077466,96267.0,96264.0,0.0321]
[1738994133382,0.2087466,96267.0,96264.0,0.0331]
[1738994138390,0.2077484,96266.0,96264.0,0.0331]
[1738994139493,0.2087484,96266.0,96264.0,0.0331]
[1738994142592,0.2087484,96266.0,96264.0,0.002]
[1738994145291,0.21910234,96266.0,96264.0,0.002]
[1738994148996,0.20775,96265.0,96264.0,0.002]
[1738994151406,0.20875,96265.0,96264.0,0.002]
[1738994155704,0.23875,96265.0,96264.0,0.002]
[1738994156915,0.45885,96265.0,96264.0,0.002]
[1738994157106,0.2077737,96254.0,96253.0,0.36235838]
[1738994158117,0.2077737,96254.0,96253.0,0.00155838]
[1738994158416,0.2087737,96254.0,96253.0,0.00355838]
[1738994159020,0.2097737,96254.0,96253.0,0.00355838]
[1738994160219,0.2097737,96254.0,96253.0,0.00155838]
[1738994161413,0.2077737,96254.0,96253.0,0.00155838]
[1738994161612,0.2087737,96254.0,96253.0,0.00155838]
[1738994163926,0.21934926,96254.0,96253.0,0.00155838]
[1738994170825,0.01157556,96254.0,96253.0,0.00155838]
[1738994171036,0.001,96254.0,96253.0,0.00155838]
[1738994171223,0.15552119,96263.0,96253.0,0.00155838]
[1738994171534,0.15552119,96263.0,96261.0,0.3608]
[1738994174031,0.15752119,96263.0,96261.0,0.3608]
[1738994175519,0.002,96263.0,96261.0,0.3608]
[1738994176425,0.002,96263.0,96261.0,0.5685582]
[1738994176825,0.002,96263.0,96262.0,0.2077564]
[1738994179632,0.002,96263.0,96261.0,0.3608]
[1738994181030,0.002,96263.0,96258.0,0.2077649]
[1738994181031,0.002,96263.0,96258.0,0.5685649]
[1738994181624,0.002,96263.0,96260.0,0.3608]
[1738994182426,0.2077483,96266.0,96260.0,0.3608]
[1738994182629,0.2077483,96266.0,96260.0,0.5685602]
[1738994182630,0.002,96263.0,96260.0,0.5685602]
[1738994184537,0.002,96263.0,96261.0,0.2077582]
[1738994185935,0.002,96263.0,96262.0,0.3608]
[1738994187134,0.002,96263.0,96256.0,0.06904]
[1738994187135,0.002,96263.0,96260.0,0.3608]
[1738994187340,0.2077609,96260.0,96253.0,0.15216924]
[1738994188037,0.002,96263.0,96253.0,0.15216924]
[1738994188227,0.01029433,96267.0,96253.0,0.15216924]
[1738994188228,0.2077687,96257.0,96253.0,0.15216924]
[1738994188429,0.2077687,96257.0,96253.0,0.07059838]
[1738994190034,0.2077687,96257.0,96253.0,0.07159838]
[1738994190846,0.2077687,96257.0,96255.0,4.621e-05]
[1738994192042,0.2077687,96257.0,96255.0,0.00104621]
[1738994195043,0.21843774,96257.0,96255.0,0.00104621]
[1738994197943,0.2077691,96256.0,96255.0,0.00104621]
[1738994202453,0.2182144,96256.0,96255.0,0.00104621]
[1738994210851,0.5790144,96256.0,96255.0,0.00104621]
[1738994211348,0.2182144,96256.0,96255.0,0.00104621]
[1738994211857,0.5790144,96256.0,96255.0,0.00104621]
[1738994217466,0.6432144,96256.0,96255.0,0.00104621]
[1738994217667,0.8633144,96256.0,96255.0,0.00104621]
[1738994220167,1.01883559,96256.0,96255.0,0.00104621]
[1738994222666,0.8633144,96256.0,96255.0,0.00104621]
[1738994224271,0.6555453,96256.0,96250.0,0.1]
[1738994224467,0.2077802,96251.0,96250.0,0.1]
[1738994224965,0.2077802,96251.0,96230.0,0.15061086]
[1738994224966,0.65614531,96256.0,96231.0,0.0303]
[1738994225173,0.2078212,96232.0,96231.0,0.0303]
[1738994226772,0.2088212,96232.0,96231.0,0.0303]
[1738994227771,0.2098212,96232.0,96231.0,0.0303]
[1738994230064,0.21999585,96232.0,96231.0,0.0303]
[1738994234673,0.2078272,96230.0,96222.0,0.09385179]
[1738994234875,0.2078272,96230.0,96223.0,0.0614]
[1738994235875,0.2098272,96230.0,96223.0,0.0614]
[1738994238773,0.002,96230.0,96229.0,0.3608]
[1738994240071,0.001,96230.0,96229.0,0.3608]
[1738994240271,0.002,96230.0,96229.0,0.3608]
[1738994243384,0.002,96230.0,96223.0,0.1304]
[1738994243778,0.2098259,96230.0,96223.0,0.0614]
[1738994244277,0.2078307,96228.0,96223.0,0.0614]
[1738994245372,0.2078345,96226.0,96223.0,0.0614]
[1738994245778,0.002,96230.0,96223.0,0.0614]
[1738994246177,0.2088311,96228.0,96223.0,0.0614]
[1738994246683,0.2098311,96228.0,96223.0,0.0614]
[1738994247084,0.2088311,96228.0,96223.0,0.0614]
[1738994247579,0.2078311,96228.0,96223.0,0.0614]
[1738994248376,0.2078415,96223.0,96215.0,0.069]
[1738994248688,0.002,96230.0,96215.0,0.069]
[1738994248689,0.2078378,96225.0,96215.0,0.069]
[1738994249683,0.001,96223.0,96215.0,0.069]
[1738994250383,0.2098378,96225.0,96215.0,0.069]
[1738994250979,0.001,96223.0,96215.0,0.069]
[1738994252185,0.002,96223.0,96215.0,0.069]
[1738994252391,0.001,96223.0,96215.0,0.069]
[1738994252980,0.002,96223.0,96215.0,0.069]
[1738994253581,0.002,96223.0,96213.0,0.2078615]
[1738994254989,0.001,96223.0,96213.0,0.2078615]
[1738994255187,0.002,96223.0,96213.0,0.2078615]
[1738994256482,0.002,96223.0,96210.0,0.11267086]
[1738994256679,0.2078428,96222.0,96210.0,0.11267086]
[1738994256989,0.2078428,96222.0,96210.0,0.32053796]
[1738994258078,0.2078428,96222.0,96211.0,0.2078653]
[1738994258679,0.2078428,96222.0,96217.0,0.3608]
[1738994258981,0.2078428,96222.0,96210.0,0.11267086]
[1738994258982,0.2088428,96222.0,96218.0,0.0318]
[1738994259492,0.2098428,96222.0,96218.0,0.0318]
[1738994260593,0.2088428,96222.0,96218.0,0.0318]
[1738994260793,0.2098428,96222.0,96218.0,0.0318]
[1738994261591,0.2088428,96222.0,96218.0,0.0318]
[1738994261797,0.2098428,96222.0,96218.0,0.0318]
[1738994270104,0.2098428,96222.0,96219.0,0.03]